lending/lending_fUSD_20251124
["ID","MTS","AMOUNT","RATE_DAILY","PERIOD"]
[394826821,1763998238223,-500.0,0.00016195,2]
[394826822,1763998238234,-500.0,0.00016195,2]
[394826823,1763998238243,-500.0,0.00016195,2]
[394826824,1763998238253,-504.68813291,0.00016195,2]
[394826825,1763998238262,-151.0,0.00016196,2]
[394826826,1763998238271,-150.0,0.000162,2]
[394826827,1763998238281,-150.0,0.000162,2]
[394826828,1763998238290,-150.0,0.000162,2]
[394826829,1763998238301,-150.0,0.000162,2]
[394826830,1763998238311,-150.0,0.000162,2]
[394826831,1763998238321,-158.37972201,0.000162,2]
[394826832,1763998238331,-150.0,0.000162,2]
[394826833,1763998238340,-152.00272824,0.000162,2]
[394826834,1763998238350,-156.93912552,0.000162,2]
[394826835,1763998238359,-5000.00383861,0.000162,5]
[394826836,1763998238369,-151.0,0.00016251,2]
[394826837,1763998238379,-166.66,0.00016281,2]
[394826838,1763998238388,-4277.15821426,0.00016296,2]
[394826839,1763998238398,-151.0,0.00016306,2]
[394826840,1763998238407,-500.0,0.00016322,2]
[394826841,1763998238416,-500.0,0.00016322,2]
[394826842,1763998238427,-500.0,0.00016322,2]
[394826843,1763998238436,-431.74798655,0.00016322,2]
[394826844,1763998238446,-500.0,0.00016322,2]
[394826845,1763998238456,-500.0,0.00016322,2]
[394826846,1763998238465,-500.0,0.00016322,2]
[394826847,1763998238475,-500.0,0.00016322,2]
[394826848,1763998238485,-282.0388486,0.00016322,2]
[394826849,1763998238496,-500.0,0.00016322,2]
[394826850,1763998238506,-500.0,0.00016322,2]
[394826851,1763998238516,-500.0,0.00016322,2]
[394826852,1763998238526,-500.0,0.00016322,2]
[394826853,1763998238536,-500.0,0.00016322,2]
[394826854,1763998238545,-500.0,0.00016322,2]
[394826855,1763998238556,-1386.78395259,0.00016322,2]
[394826856,1763998238566,-500.0,0.00016322,2]
[394826857,1763998238576,-500.0,0.00016322,2]
[394826858,1763998238586,-500.0,0.00016322,2]
[394826859,1763998238596,-500.0,0.00016322,2]
[394826860,1763998238606,-500.0,0.00016322,2]
[394826861,1763998238616,-500.0,0.00016322,2]
[394826862,1763998238626,-500.0,0.00016322,2]
[394826863,1763998238636,-500.0,0.00016322,2]
[394826864,1763998238646,-500.0,0.00016322,2]
[394826865,1763998238655,-500.0,0.00016322,2]
[394826866,1763998238664,-500.0,0.00016322,2]
[394826867,1763998238674,-151.0,0.00016361,2]
[394826868,1763998238684,-166.66,0.00016373,2]
[394826869,1763998238698,-151.0,0.00016416,2]
[394826870,1763998238708,-500.0,0.00016438,2]
[394826871,1763998238718,-500.0,0.00016438,2]
[394826872,1763998238729,-181.43620188,0.00016438,2]
[394826873,1763998238740,-224.98,0.00016438,2]
[394826874,1763998238750,-4294.93,0.00016438,2]
[394826875,1763998238760,-231.45516283,0.00016471,2]
[394826876,1763998238773,-4277.15821426,0.00016497,2]
[394826877,1763998238782,-500.0,0.00016521,2]
[394826878,1763998238792,-500.0,0.00016521,2]
[394826879,1763998238802,-1000.0,0.00016521,2]
[394826880,1763998238812,-4277.15821426,0.00016697,2]
[394826881,1763998238821,-166.66,0.00016703,2]
[394826882,1763998238831,-521.19234435,0.00016721,2]
[394826883,1763998238841,-500.0,0.00016721,2]
[394826884,1763998238851,-300.0,0.00016762,2]
[394826885,1763998239047,-565.289,0.00016774,2]
[394826886,1763998239072,-166.66,0.00016801,2]
[394826887,1763998239082,-1438.09495884,0.0001687,2]
[394826888,1763998239092,-4277.15821426,0.00016898,2]
[394826889,1763998239102,-220.96140505,0.00016934,2]
[394826890,1763998239113,-502.45353273,0.00016973,2]
[394826891,1763998239123,-500.0,0.00016973,2]
[394826892,1763998239133,-500.0,0.00016973,2]
[394826893,1763998239144,-500.0,0.00016973,2]
[394826894,1763998239153,-500.0,0.00016973,2]
[394826895,1763998239163,-501.2949182,0.00016973,2]
[394826896,1763998239173,-500.0,0.00016973,2]
[394826897,1763998239184,-500.0,0.00016973,2]
[394826898,1763998239193,-501.32121336,0.00016973,2]
[394826899,1763998239203,-500.0,0.00016973,2]
[394826900,1763998239213,-500.0,0.00016973,2]
[394826901,1763998239223,-500.0,0.00016973,2]
[394826902,1763998239232,-500.0,0.00016973,2]
[394826903,1763998239242,-500.0,0.00016973,2]
[394826904,1763998239251,-501.79706774,0.00016973,2]
[394826905,1763998239261,-500.0,0.00016973,2]
[394826906,1763998239272,-327.89727296,0.00016973,2]
[394826907,1763998239282,-353.97964634,0.00016973,2]
[394826908,1763998239291,-500.0,0.00016973,2]
[394826909,1763998239304,-505.0559587,0.00016973,2]
[394826910,1763998239313,-55642.0,0.00016986,2]
[394826911,1763998239322,-432.35466996,0.0001699,2]
[394826912,1763998239332,-432.35466996,0.0001699,2]
[394826913,1763998239342,-300.0,0.00016999,2]
[394826914,1763998239351,-300.0,0.00016999,2]
[394826915,1763998239364,-450.0,0.00016999,2]
[394826916,1763998239374,-150.0,0.00016999,2]
[394826917,1763998239383,-150.0,0.00016999,2]
[394826918,1763998239393,-152.1079226,0.00016999,2]
[394826919,1763998239402,-300.0,0.00016999,2]
[394826920,1763998239412,-250.0,0.00017,2]
[394826921,1763998239422,-4850377.50786438,0.00017,2]
[394826922,1763998239432,-166.66,0.00017034,2]
[394826923,1763998239442,-9215.52,0.00017045,2]
[394826924,1763998239451,-500.0,0.00017068,2]
[394826925,1763998239461,-4277.15821426,0.00017098,2]
[394826926,1763998239471,-510.0,0.00017114,2]
[394826927,1763998239480,-1200.82,0.00017178,2]
[394826928,1763998239490,-4277.15821426,0.00017299,2]
[394826929,1763998239500,-166.66,0.00017322,2]
[394826930,1763998239510,-150.2853167,0.00017337,3]
[394826931,1763998239520,-166.66,0.00017365,2]
[394826932,1763998239529,-1491.30447232,0.00017418,2]
[394826933,1763998239539,-420.0,0.00017487,2]
[394826934,1763998239550,-420.0,0.00017487,2]
[394826935,1763998239559,-4277.15821426,0.00017499,2]
[394826936,1763998239574,-3663.5953769,0.00017504,2]
[394826937,1763998239585,-1000.0,0.00017521,2]
[394826938,1763998239596,-1000.0,0.00017521,2]
[394826939,1763998239606,-501.27256296,0.00017521,2]
[394826940,1763998239616,-898.97983544,0.00017521,2]
[394826941,1763998239626,-791.92069505,0.00017521,2]
[394826942,1763998239636,-500.0,0.00017521,2]
[394826943,1763998239646,-1000.0,0.00017521,2]
[394826944,1763998239655,-1000.0,0.00017521,2]
[394826945,1763998239666,-1000.0,0.00017521,2]
[394826946,1763998239676,-609.34893156,0.00017521,2]
[394826947,1763998239687,-1680.0,0.00017575,2]
[394826948,1763998239700,-250.0,0.00017646,2]
[394826949,1763998239710,-4277.15821426,0.000177,2]
[394826950,1763998239720,-403.0,0.000177,5]
[394826951,1763998239730,-3663.5953769,0.00017702,2]
[394826952,1763998239740,-1008.0,0.00017731,2]
[394826953,1763998239751,-217.83804072,0.00017757,2]
[394826954,1763998239761,-248.44294024,0.00017764,2]
[394826955,1763998239777,-500.0,0.00017764,2]
[394826957,1763998239788,-472.59481902,0.00017764,2]
[394826958,1763998239798,-647.76457253,0.00017764,2]
[394826959,1763998239808,-500.0,0.00017764,2]
[394826960,1763998239818,-1008.0,0.00017802,2]
[394826961,1763998239828,-151.0,0.00017819,2]
[394826962,1763998239837,-244.23869,0.0001782,2]
[394826963,1763998239848,-244.2387,0.0001782,2]
[394826964,1763998239858,-244.23869,0.0001782,2]
[394826965,1763998239867,-1008.0,0.00017838,2]
[394826966,1763998239877,-166.66,0.00017842,2]
[394826967,1763998239887,-500.0,0.00017856,2]
[394826968,1763998239897,-200.0,0.00017856,2]
[394826969,1763998239907,-1000.0,0.000179,2]
[394826970,1763998239917,-1321.6735,0.000179,2]
[394826971,1763998239927,-3663.5953769,0.000179,2]
[394826972,1763998239936,-4277.15821426,0.000179,2]
[394826973,1763998239946,-150.0,0.00017949,2]
[394826974,1763998239956,-1696.0,0.00017949,2]
[394826975,1763998239965,-500.0,0.00017949,2]
[394826976,1763998239979,-204.08896971,0.00017949,2]
[394826977,1763998239989,-150.0,0.00017949,2]
[394826978,1763998239999,-150.0,0.00017949,2]
[394826979,1763998240008,-150.0,0.00017949,2]
[394826980,1763998240018,-500.0,0.00017949,2]
[394826981,1763998240027,-500.0,0.00017949,2]
[394826982,1763998240036,-150.0,0.00017949,2]
[394826983,1763998240046,-150.0,0.00017949,2]
[394826984,1763998240056,-500.0,0.00017949,2]
[394826985,1763998240066,-150.56621767,0.00017949,2]
[394826986,1763998240075,-150.0,0.00017949,2]
[394826987,1763998240086,-151.67192107,0.00017949,2]
[394826988,1763998240095,-150.0,0.00017949,2]
[394826989,1763998240105,-150.0,0.00017949,2]
[394826990,1763998240115,-500.0,0.00017949,2]
[394826991,1763998240125,-150.0,0.00017949,2]
[394826992,1763998240134,-202.40106133,0.00017949,2]
[394826993,1763998240144,-150.0,0.00017949,2]
[394826994,1763998240153,-1546.48273779,0.00017966,2]
[394826995,1763998240165,-500.0,0.00017973,2]
[394826996,1763998240175,-500.0,0.00017973,2]
[394826997,1763998240184,-500.0,0.00017973,2]
[394826998,1763998240195,-500.0,0.00017973,2]
[394826999,1763998240204,-500.0,0.00017973,2]
[394827000,1763998240214,-500.44446956,0.00017973,2]
[394827001,1763998240223,-502.26767728,0.00017973,2]
[394827002,1763998240232,-500.0,0.00017973,2]
[394827003,1763998240243,-175.50700916,0.00017973,2]
[394827004,1763998240252,-648.69732152,0.00017973,2]
[394827005,1763998240262,-503.08797881,0.00017973,2]
[394827006,1763998240272,-264.22125371,0.00017973,2]
[394827007,1763998240282,-150.0,0.00017973,2]
[394827008,1763998240293,-1008.0,0.00017983,2]
[394827009,1763998240304,-1008.0,0.00017986,2]
[394827010,1763998240314,-249.49,0.00017989,2]
[394827011,1763998240324,-432.35466996,0.0001799,2]
[394827012,1763998240333,-896.15879611,0.00017999,5]
[394827013,1763998240343,-580.24,0.00017999,2]
[394827014,1763998240353,-580.24,0.00017999,2]
[394827015,1763998240363,-580.24,0.00017999,2]
[394827016,1763998240373,-580.24,0.00017999,2]
[394827017,1763998240382,-580.24,0.00017999,2]
[394827018,1763998240392,-580.24,0.00017999,2]
[394827019,1763998240402,-580.24,0.00017999,2]
[394827020,1763998240412,-580.24,0.00017999,2]
[394827021,1763998240422,-580.24,0.00017999,2]
[394827022,1763998240432,-580.24,0.00017999,2]
[394827023,1763998240442,-580.24,0.00017999,2]
[394827024,1763998240452,-580.24,0.00017999,2]
[394827025,1763998240461,-580.24,0.00017999,2]
[394827026,1763998240471,-580.24,0.00017999,2]
[394827027,1763998240481,-580.24,0.00017999,2]
[394827028,1763998240491,-580.24,0.00017999,2]
[394827029,1763998240500,-580.24,0.00017999,2]
[394827030,1763998240511,-580.24,0.00017999,2]
[394827031,1763998240521,-580.24,0.00017999,2]
[394827032,1763998240531,-580.24,0.00017999,2]
[394827033,1763998240542,-580.4,0.00017999,2]
[394827034,1763998240553,-5382.0,0.00018,2]
[394827035,1763998240564,-1412464.36321548,0.00018,2]
[394827036,1763998240574,-481756.64966001,0.00018,2]
[394827037,1763998240589,-174685.43886395,0.00018,2]
[394827038,1763998240610,-161525.86491287,0.00018,2]
[394827044,1763998240968,-764.0,0.00018,2]
[394827045,1763998240999,-3376234.07188576,0.00018,2]
[394827046,1763998241020,-278.75783193,0.00018,2]
[394827047,1763998241052,-902.549358,0.00018,2]
[394827051,1763998245728,-500.0,0.00017949,2]
[394827053,1763998245738,-1121.21620304,0.00018,2]
[394827056,1763998246072,-741081.30290349,0.00018,2]
[394827057,1763998246084,-745899.25454273,0.00018,2]
[394827058,1763998246100,-615845.66127191,0.00018,2]
[394827059,1763998246218,-77127.20651267,0.00018,2]
[394827060,1763998246408,-1383.54009619,0.00018,2]
[394827061,1763998246421,-425591.52636869,0.00018,2]
[394827063,1763998246445,-51407.30730629,0.00018,2]
[394827072,1763998377895,164.41,8.45e-05,2]
[394827076,1763998604879,7029.54134556,0.00015744,2]
[394827077,1763998604903,2970.45865444,0.00015744,2]
[394827078,1763998620238,7029.55134556,0.00015744,2]
[394827079,1763998620263,2970.44865444,0.00015744,2]
[394827080,1763998625100,1000.0,0.00015,2]
[394827081,1763998636381,6029.56134556,0.00015744,2]
[394827082,1763998636406,3970.43865444,0.00015744,2]
[394827083,1763998655168,6029.57134556,0.00015744,2]
[394827084,1763998655191,3970.42865444,0.00015744,2]
[394827085,1763998670733,6029.58134556,0.00015744,2]
[394827086,1763998670756,3970.41865444,0.00015744,2]
[394827087,1763998691882,6029.59134556,0.00015744,2]
[394827088,1763998691905,1170.40865444,0.00015744,2]
[394827125,1763999124869,1641.93,0.00015,2]
[394827134,1763999432205,-250.0,0.00015993,2]
[394827135,1763999432215,-144.17718249,0.00015994,2]
[394827136,1763999432229,-155.82281751,0.00015994,2]
[394827137,1763999432238,-300.0,0.00015994,2]
[394827138,1763999432248,-393.1643502,0.00015994,2]
[394827139,1763999432259,-646.62018074,0.00015994,2]
[394827140,1763999432279,-160.21546906,0.00015994,2]
[394827141,1763999432288,-300.0,0.00015994,2]
[394827142,1763999432298,-506.97795181,0.00015995,2]
[394827143,1763999432308,-46.26636977,0.00015995,2]
[394827144,1763999432320,-453.73363023,0.00015995,2]
[394827145,1763999432330,-500.0,0.00015995,2]
[394827146,1763999432339,-500.0,0.00015995,2]
[394827147,1763999432349,-500.0,0.00015995,2]
[394827148,1763999432358,-500.0,0.00015995,2]
[394827149,1763999432368,-500.0,0.00015995,2]
[394827150,1763999432377,-500.0,0.00015995,2]
[394827151,1763999432387,-500.0,0.00015995,2]
[394827152,1763999432396,-409.68348464,0.00016195,2]
[394827153,1763999432407,-237.27516102,0.00016195,2]
[394827154,1763999432416,-500.0,0.00016195,2]
[394827155,1763999432425,-500.0,0.00016195,2]
[394827156,1763999432435,-500.0,0.00016195,2]
[394827157,1763999432444,-500.0,0.00016195,2]
[394827158,1763999432453,-500.0,0.00016195,2]
[394827159,1763999432463,-500.0,0.00016195,2]
[394827160,1763999432472,-500.0,0.00016195,2]
[394827161,1763999432481,-500.0,0.00016195,2]
[394827162,1763999432491,-500.0,0.00016195,2]
[394827163,1763999432500,-500.0,0.00016195,2]
[394827164,1763999432510,-500.0,0.00016195,2]
[394827165,1763999432521,-446.74332451,0.00016195,2]
[394827166,1763999432531,-150.0,0.000162,2]
[394827167,1763999432540,-150.0,0.000162,2]
[394827168,1763999432550,-150.0,0.000162,2]
[394827169,1763999432561,-169.47971709,0.000162,2]
[394827170,1763999432571,-200.0,0.000165,2]
[394827171,1763999432580,-150.0,0.00016586,2]
[394827172,1763999432589,-6370.42143855,0.00016589,2]
[394827173,1763999432599,-1000.0,0.0001666,2]
[394827174,1763999432608,-999.0,0.00016665,3]
[394827175,1763999432617,-1600.0,0.00016679,2]
[394827176,1763999432626,-1489.83,0.00016685,2]
[394827177,1763999432636,-299.0,0.00016768,2]
[394827178,1763999432645,-1000.0,0.00016854,2]
[394827180,1763999432655,-1000.0,0.00016854,2]
[394827181,1763999432665,-1000.0,0.00016854,2]
[394827182,1763999432675,-1000.0,0.00016854,2]
[394827183,1763999432685,-1000.0,0.00016854,2]
[394827184,1763999432695,-1000.0,0.00016854,2]
[394827185,1763999432705,-1000.0,0.00016854,2]
[394827186,1763999432715,-410.80515512,0.00016873,2]
[394827187,1763999432725,-500.0,0.00016873,2]
[394827188,1763999432735,-500.0,0.00016873,2]
[394827189,1763999432745,-500.0,0.00016873,2]
[394827190,1763999432755,-638.64179774,0.00016873,2]
[394827191,1763999432764,-500.28924973,0.00016873,2]
[394827192,1763999432774,-500.0,0.00016873,2]
[394827193,1763999432783,-500.0,0.00016873,2]
[394827195,1763999432793,-346.4056961,0.00016876,2]
[394827196,1763999432802,-156.03607507,0.00016876,2]
[394827197,1763999432813,-82672.87448037,0.00016899,2]
[394827198,1763999432826,-13649.77338505,0.00016899,2]
[394827199,1763999432837,-29513.45886241,0.00016899,2]
[394827200,1763999432849,-2555.19420213,0.00016899,2]
[394827201,1763999432863,-461.17361602,0.00016899,2]
[394827202,1763999432889,-1126.55618914,0.00016899,2]
[394827203,1763999432900,-6815.12586,0.00016899,2]
[394827204,1763999432920,-1246.93004674,0.00016899,2]
[394827205,1763999432932,-366.12735098,0.00016899,2]
[394827206,1763999432951,-978.71373151,0.00016899,2]
[394827207,1763999432962,-527.69098567,0.00016899,2]
[394827208,1763999432975,-1030.18324532,0.00016899,2]
[394827209,1763999432987,-2736.15900844,0.00016899,2]
[394827212,1763999438330,-1119.12251116,0.00016899,2]
[394827213,1763999438342,-615200.91652506,0.00016899,2]
[394827214,1763999438351,-1386.78395259,0.00016976,2]
[394827215,1763999438361,-642.94,0.00016989,2]
[394827216,1763999438371,-500.0,0.00016989,2]
[394827217,1763999438380,-500.0,0.00016989,2]
[394827218,1763999438390,-500.0,0.00016989,2]
[394827219,1763999438400,-500.0,0.00016989,2]
[394827220,1763999438411,-500.0,0.00016989,2]
[394827221,1763999438421,-597.09424157,0.00016989,2]
[394827222,1763999438431,-500.0,0.00016989,2]
[394827223,1763999438441,-500.0,0.00016989,2]
[394827224,1763999438450,-500.0,0.00016989,2]
[394827225,1763999438460,-500.0,0.00016989,2]
[394827226,1763999438469,-500.0,0.00016989,2]
[394827227,1763999438479,-500.0,0.00016989,2]
[394827228,1763999438489,-500.0,0.00016989,2]
[394827229,1763999438499,-500.0,0.00016989,2]
[394827230,1763999438509,-500.0,0.00016989,2]
[394827231,1763999438519,-500.0,0.00016989,2]
[394827232,1763999438528,-500.0,0.00016989,2]
[394827233,1763999438538,-500.0,0.00016989,2]
[394827234,1763999438548,-500.0,0.00016989,2]
[394827235,1763999438558,-500.0,0.00016989,2]
[394827236,1763999438567,-500.0,0.00016989,2]
[394827237,1763999438577,-500.0,0.00016989,2]
[394827238,1763999438587,-500.0,0.00016989,2]
[394827239,1763999438597,-500.0,0.00016999,2]
[394827240,1763999438607,-645.22318569,0.00016999,2]
[394827241,1763999438616,-368.38492657,0.00016999,2]
[394827242,1763999438627,-500.0,0.00016999,2]
[394827243,1763999438637,-500.0,0.00016999,2]
[394827244,1763999438648,-500.0,0.00016999,2]
[394827245,1763999438659,-500.0,0.00016999,2]
[394827246,1763999438669,-500.0,0.00016999,2]
[394827247,1763999438679,-500.0,0.00016999,2]
[394827248,1763999438689,-500.0,0.00016999,2]
[394827249,1763999438699,-500.0,0.00016999,2]
[394827250,1763999438709,-500.0,0.00016999,2]
[394827251,1763999438719,-439.74156925,0.00016999,2]
[394827252,1763999438730,-363.29164224,0.00016999,2]
[394827253,1763999438740,-500.0,0.00016999,2]
[394827254,1763999438750,-500.0,0.00016999,2]
[394827255,1763999438760,-500.0,0.00016999,2]
[394827256,1763999438770,-500.0,0.00016999,2]
[394827257,1763999438780,-500.0,0.00016999,2]
[394827258,1763999438791,-500.0,0.00016999,2]
[394827259,1763999438800,-331.0821075,0.00016999,2]
[394827260,1763999438810,-250.0,0.00017,2]
[394827261,1763999438820,-346.40569604,0.00017022,2]
[394827262,1763999438830,-3645.57,0.00017111,2]
[394827263,1763999438840,-510.0,0.00017114,2]
[394827264,1763999438850,-346.40569604,0.00017169,2]
[394827265,1763999438861,-156.03607507,0.00017217,2]
[394827266,1763999438870,-165.442,0.00017264,2]
[394827267,1763999438880,-346.40569604,0.00017315,2]
[394827268,1763999438889,-1330.825,0.00017342,2]
[394827269,1763999438899,-500.0,0.00017421,2]
[394827270,1763999438910,-168.0,0.00017422,2]
[394827271,1763999438920,-346.40569604,0.00017461,2]
[394827272,1763999438930,-420.0,0.00017487,2]
[394827273,1763999438940,-420.0,0.00017487,2]
[394827274,1763999438950,-2000.0,0.000175,2]
[394827275,1763999438960,-728.80786782,0.00017521,2]
[394827276,1763999438971,-1438.09495884,0.00017524,2]
[394827278,1763999438982,-156.03607507,0.00017559,2]
[394827280,1763999438991,-1680.0,0.00017575,2]
[394827282,1763999439001,-217.83804072,0.00017588,2]
[394827284,1763999439011,-250.0,0.00017593,2]
[394827285,1763999439021,-250.0,0.00017593,2]
[394827287,1763999439031,-346.40569604,0.00017607,2]
[394827289,1763999439041,-5376.0,0.00017653,2]
[394827291,1763999439056,-2545.0,0.00017717,2]
[394827294,1763999439066,-1320.0,0.00017719,2]
[394827295,1763999439075,-3437.0,0.00017719,2]
[394827297,1763999439086,-576.0,0.00017719,2]
[394827299,1763999439095,-843.0,0.00017719,2]
[394827301,1763999439104,-1615.853,0.00017719,2]
[394827303,1763999439114,-908.0,0.00017719,2]
[394827305,1763999439124,-1192.0,0.00017719,2]
[394827307,1763999439133,-1256.0,0.00017719,2]
[394827309,1763999439143,-659.0,0.00017719,2]
[394827310,1763999439153,-150.0,0.00017719,2]
[394827311,1763999439163,-252.0,0.00017719,2]
[394827312,1763999439173,-2715.0,0.00017719,2]
[394827313,1763999439184,-6499.0,0.00017719,2]
[394827314,1763999439194,-346.40569604,0.00017754,2]
[394827315,1763999439204,-3621.20549737,0.00017756,2]
[394827316,1763999439214,-11115.52330956,0.00017799,2]
[394827317,1763999439224,-1000.0,0.000178,2]
[394827318,1763999439234,-2926.2639165,0.000178,2]
[394827319,1763999439244,-2500.0,0.000178,2]
[394827320,1763999439254,-11115.52330952,0.0001781,2]
[394827321,1763999439265,-2926.2639165,0.00017811,2]
[394827322,1763999439275,-11115.52330952,0.00017821,2]
[394827323,1763999439285,-2926.2639165,0.00017822,2]
[394827324,1763999439298,-11115.52330952,0.00017833,2]
[394827325,1763999439308,-2926.2639165,0.00017833,2]
[394827326,1763999439317,-151.0,0.00017839,2]
[394827327,1763999439328,-11115.52330952,0.00017844,2]
[394827328,1763999439338,-2926.2639165,0.00017844,2]
[394827329,1763999439348,-11115.52330952,0.00017855,2]
[394827330,1763999439358,-2926.2639165,0.00017856,2]
[394827331,1763999439369,-500.0,0.00017856,2]
[394827332,1763999439378,-200.0,0.00017856,2]
[394827333,1763999439388,-11115.52330952,0.00017866,2]
[394827334,1763999439398,-2926.2639165,0.00017867,2]
[394827335,1763999439408,-500.0,0.00017873,2]
[394827336,1763999439417,-500.0,0.00017873,2]
[394827337,1763999439428,-11115.52330952,0.00017878,2]
[394827338,1763999439438,-2926.2639165,0.00017878,2]
[394827339,1763999439448,-11115.52330952,0.00017889,2]
[394827340,1763999439458,-2926.2639165,0.00017889,2]
[394827341,1763999439467,-507.77972796,0.00017898,2]
[394827342,1763999439476,-500.0,0.00017898,2]
[394827343,1763999439486,-882.06,0.00017898,2]
[394827344,1763999439495,-500.0,0.00017898,2]
[394827345,1763999439505,-500.0,0.00017898,2]
[394827346,1763999439514,-500.0,0.00017898,2]
[394827347,1763999439523,-500.0,0.00017898,2]
[394827348,1763999439533,-445.44729605,0.00017898,2]
[394827349,1763999439542,-500.0,0.00017898,2]
[394827350,1763999439551,-500.0,0.00017899,2]
[394827351,1763999439561,-406.31344899,0.00017899,2]
[394827352,1763999439570,-501.86314705,0.00017899,2]
[394827353,1763999439580,-500.0,0.00017899,2]
[394827354,1763999439590,-500.0,0.00017899,2]
[394827355,1763999439599,-500.0,0.00017899,2]
[394827356,1763999439608,-500.0,0.00017899,2]
[394827357,1763999439618,-500.0,0.00017899,2]
[394827358,1763999439628,-342.27425818,0.00017899,2]
[394827359,1763999439637,-500.0,0.00017899,2]
[394827360,1763999439647,-500.0,0.00017899,2]
[394827361,1763999439656,-500.0,0.00017899,2]
[394827362,1763999439669,-555.12074998,0.00017899,2]
[394827363,1763999439679,-262.1295336,0.00017899,2]
[394827364,1763999439688,-442.06960664,0.00017899,2]
[394827365,1763999439698,-500.0,0.00017899,2]
[394827366,1763999439707,-500.0,0.00017899,2]
[394827367,1763999439717,-500.0,0.00017899,2]
[394827368,1763999439727,-365.44465012,0.00017899,2]
[394827369,1763999439737,-500.0,0.00017899,2]
[394827370,1763999439747,-500.0,0.00017899,2]
[394827371,1763999439757,-491.43382697,0.00017899,2]
[394827372,1763999439767,-500.0,0.00017899,2]
[394827373,1763999439777,-500.0,0.00017899,2]
[394827374,1763999439787,-500.0,0.00017899,2]
[394827375,1763999439797,-500.0,0.00017899,2]
[394827376,1763999439807,-500.0,0.00017899,2]
[394827377,1763999439817,-453.99435716,0.00017899,2]
[394827378,1763999439827,-500.0,0.00017899,2]
[394827379,1763999439837,-500.0,0.00017899,2]
[394827380,1763999439847,-500.0,0.00017899,2]
[394827381,1763999439857,-500.0,0.00017899,2]
[394827382,1763999439871,-500.0,0.00017899,2]
[394827383,1763999439881,-500.0,0.00017899,2]
[394827384,1763999439891,-500.0,0.00017899,2]
[394827385,1763999439901,-500.0,0.00017899,2]
[394827386,1763999439911,-500.0,0.00017899,2]
[394827387,1763999439920,-500.0,0.00017899,2]
[394827388,1763999439930,-500.0,0.00017899,2]
[394827389,1763999439940,-500.0,0.00017899,2]
[394827390,1763999439950,-500.0,0.00017899,2]
[394827391,1763999439960,-500.0,0.00017899,2]
[394827392,1763999439970,-500.0,0.00017899,2]
[394827393,1763999439980,-500.0,0.00017899,2]
[394827394,1763999439989,-500.0,0.00017899,2]
[394827395,1763999439998,-643.42729349,0.00017899,2]
[394827396,1763999440008,-500.0,0.00017899,2]
[394827397,1763999440017,-500.0,0.00017899,2]
[394827398,1763999440026,-500.0,0.00017899,2]
[394827399,1763999440035,-500.0,0.00017899,2]
[394827400,1763999440046,-500.0,0.00017899,2]
[394827401,1763999440056,-500.0,0.00017899,2]
[394827402,1763999440066,-500.0,0.00017899,2]
[394827403,1763999440079,-500.0,0.00017899,2]
[394827404,1763999440091,-500.0,0.00017899,2]
[394827405,1763999440100,-500.0,0.00017899,2]
[394827406,1763999440110,-500.0,0.00017899,2]
[394827407,1763999440119,-151.71607223,0.00017899,2]
[394827408,1763999440131,-500.0,0.00017899,2]